bitfinex-derivatives/quotes_BNBF0:USTF0_20250908
["timestamp","ask_amount","ask_price","bid_price","bid_amount"]
[1757370858587,0.63556852,878.24,875.96,0.19804798]
[1757370858783,0.63556852,878.23,875.96,0.19804798]
[1757370858989,1.5249074,877.44,875.96,0.19804798]
[1757370859189,0.63556852,877.43,875.96,0.19804798]
[1757370859489,0.63556852,877.42,875.96,0.19804798]
[1757370859689,0.63556852,877.41,875.96,0.19804798]
[1757370859894,0.63556852,877.4,875.96,0.19804798]
[1757370860093,0.63556852,877.39,875.96,0.19804798]
[1757370860291,0.63556852,877.38,875.96,0.19804798]
[1757370860495,0.63556852,877.37,875.96,0.19804798]
[1757370860692,0.63556852,877.36,875.96,0.19804798]
[1757370860994,0.63556852,877.35,875.96,0.19804798]
[1757370861289,1.5249074,877.45,875.96,0.19804798]
[1757370861491,0.63545195,877.44,875.96,0.19804798]
[1757370861695,0.63545195,877.43,875.96,0.19804798]
[1757370861895,0.63545195,877.42,875.96,0.19804798]
[1757370862194,0.63545195,877.41,875.96,0.19804798]
[1757370862395,2.16035935,877.4,875.96,0.19804798]
[1757370862595,0.63545195,877.39,875.96,0.19804798]
[1757370862795,0.63545195,877.38,875.96,0.19804798]
[1757370862996,0.63545195,877.37,875.96,0.19804798]
[1757370863193,0.63545195,877.36,875.96,0.19804798]
[1757370863397,0.63545195,877.35,875.96,0.19804798]
[1757370863593,0.63545195,877.34,875.96,0.19804798]
[1757370863799,1.5249074,877.41,875.96,0.19804798]
[1757370863998,1.5249074,877.34,875.96,0.19804798]
[1757370868402,1.37241667,877.34,875.96,0.19804798]
[1757370871102,2.5398345,877.93,875.96,0.19804798]
[1757370871299,0.63349684,877.92,875.96,0.19804798]
[1757370871599,0.63349684,877.91,875.96,0.19804798]
[1757370871798,0.63349684,877.9,875.96,0.19804798]
[1757370872103,0.63349684,877.89,875.96,0.19804798]
[1757370872403,0.63349684,877.88,875.96,0.19804798]
[1757370872603,0.63349684,877.87,875.96,0.19804798]
[1757370872800,0.63349684,877.86,875.96,0.19804798]
[1757370873005,0.63349684,877.85,875.96,0.19804798]
[1757370873205,0.63349684,877.84,875.96,0.19804798]
[1757370873405,0.63349684,877.83,875.96,0.19804798]
[1757370873599,0.63349684,877.82,875.96,0.19804798]
[1757370873803,0.63349684,877.81,875.96,0.19804798]
[1757370874105,0.63349684,877.8,875.96,0.19804798]
[1757370874301,0.63349684,877.79,875.96,0.19804798]
[1757370874502,0.63349684,877.78,875.96,0.19804798]
[1757370874704,0.63349684,877.77,875.96,0.19804798]
[1757370874907,0.63349684,877.76,875.96,0.19804798]
[1757370875107,0.63349684,877.75,875.96,0.19804798]
[1757370875305,0.63349684,877.74,875.96,0.19804798]
[1757370875502,0.63349684,877.73,875.96,0.19804798]
[1757370875805,0.63349684,877.72,875.96,0.19804798]
[1757370876104,2.5398345,878.11,875.96,0.19804798]
[1757370876105,0.63349684,877.71,875.96,0.19804798]
[1757370876304,0.63349684,877.7,875.96,0.19804798]
[1757370876502,0.63349684,877.69,875.96,0.19804798]
[1757370876705,0.63349684,877.68,875.96,0.19804798]
[1757370876906,0.63349684,877.67,875.96,0.19804798]
[1757370877104,0.63349684,877.66,875.96,0.19804798]
[1757370877304,0.63349684,877.65,875.96,0.19804798]
[1757370877507,0.63349684,877.64,875.96,0.19804798]
[1757370877703,0.63349684,877.63,875.96,0.19804798]
[1757370878008,0.63349684,877.62,875.96,0.19804798]
[1757370878308,0.63349684,877.61,875.96,0.19804798]
[1757370878605,0.63349684,877.6,875.96,0.19804798]
[1757370878808,0.63349684,877.59,875.96,0.19804798]
[1757370879104,0.63349684,877.58,875.96,0.19804798]
[1757370879304,0.63349684,877.57,875.96,0.19804798]
[1757370879505,0.63349684,877.56,875.96,0.19804798]
[1757370879704,0.63349684,877.55,875.96,0.19804798]
[1757370879905,0.63349684,877.54,875.96,0.19804798]
[1757370880106,0.63349684,877.53,875.96,0.19804798]
[1757370880306,0.63349684,877.52,875.96,0.19804798]
[1757370880605,0.63349684,877.51,875.96,0.19804798]
[1757370880811,0.63349684,877.5,875.96,0.19804798]
[1757370881109,2.5398345,878.16,875.96,0.19804798]
[1757370881110,0.63349684,877.49,875.96,0.19804798]
[1757370881304,0.63349684,877.48,875.96,0.19804798]
[1757370881504,0.63349684,877.47,875.96,0.19804798]
[1757370881809,0.63349684,877.46,875.96,0.19804798]
[1757370882104,0.63349684,877.45,875.96,0.19804798]
[1757370882303,2.5398345,878.55,875.96,0.19804798]
[1757370882506,0.63312927,878.54,875.96,0.19804798]
[1757370882705,0.63312927,878.53,875.96,0.19804798]
[1757370882909,0.63312927,878.52,875.96,0.19804798]
[1757370883209,0.63312927,878.51,875.96,0.19804798]
[1757370883409,0.63312927,878.5,875.96,0.19804798]
[1757370883605,0.63312927,878.49,875.96,0.19804798]
[1757370883809,0.63312927,878.48,875.96,0.19804798]
[1757370884105,0.63312927,878.47,875.96,0.19804798]
[1757370884309,0.63312927,878.46,875.96,0.19804798]
[1757370884509,0.63312927,878.45,875.96,0.19804798]
[1757370884705,0.63312927,878.44,875.96,0.19804798]
[1757370884905,0.63312927,878.43,875.96,0.19804798]
[1757370885105,0.63312927,878.42,875.96,0.19804798]
[1757370885306,0.63312927,878.41,875.96,0.19804798]
[1757370885505,3.5710953,878.98,875.96,0.19804798]
[1757370885506,0.63312927,878.4,875.96,0.19804798]
[1757370885709,0.63312927,878.39,875.96,0.19804798]
[1757370886005,0.63312927,878.38,875.96,0.19804798]
[1757370886210,0.63312927,878.37,875.96,0.19804798]
[1757370886406,0.63312927,878.36,875.96,0.19804798]
[1757370886609,0.63312927,878.35,875.96,0.19804798]
[1757370886809,0.63312927,878.34,875.96,0.19804798]
[1757370887007,0.63312927,878.33,875.96,0.19804798]
[1757370887209,0.63312927,878.32,875.96,0.19804798]
[1757370887409,0.63312927,878.31,875.96,0.19804798]
[1757370887612,0.63312927,878.3,875.96,0.19804798]
[1757370887812,0.63312927,878.29,875.96,0.19804798]
[1757370888007,0.63312927,878.28,875.96,0.19804798]
[1757370888211,0.63312927,878.27,875.96,0.19804798]
[1757370888514,1.524816,877.66,875.96,0.19804798]
[1757370888711,0.63312927,877.65,875.96,0.19804798]
[1757370888912,0.63312927,877.64,875.96,0.19804798]
[1757370889110,0.63312927,877.63,875.96,0.19804798]
[1757370889409,0.63312927,877.62,875.96,0.19804798]
[1757370889613,0.63312927,877.61,875.96,0.19804798]
[1757370889814,0.63312927,877.6,875.96,0.19804798]
[1757370890011,0.63312927,877.59,875.96,0.19804798]
[1757370890215,0.63312927,877.58,875.96,0.19804798]
[1757370890510,0.63312927,877.57,875.96,0.19804798]
[1757370890715,0.63312927,877.56,875.96,0.19804798]
[1757370891011,0.63312927,877.55,875.96,0.19804798]
[1757370891212,0.63312927,877.54,875.96,0.19804798]
[1757370891415,0.63312927,877.53,875.96,0.19804798]
[1757370891616,0.63312927,877.52,875.96,0.19804798]
[1757370891817,0.63312927,877.51,875.96,0.19804798]
[1757370892116,0.63312927,877.5,875.96,0.19804798]
[1757370892315,0.63312927,877.49,875.96,0.19804798]
[1757370892515,1.524816,877.59,875.96,0.19804798]
[1757370892715,0.63349095,877.58,875.96,0.19804798]
[1757370892915,0.63349095,877.57,875.96,0.19804798]
[1757370893116,0.63349095,877.56,875.96,0.19804798]
[1757370893415,0.63349095,877.55,875.96,0.19804798]
[1757370893616,0.63349095,877.54,875.96,0.19804798]
[1757370893816,0.63349095,877.53,875.96,0.19804798]
[1757370894014,0.63349095,877.52,875.96,0.19804798]
[1757370894209,0.63349095,877.51,875.96,0.19804798]
[1757370894514,0.63349095,877.5,875.96,0.19804798]
[1757370894712,0.63349095,877.49,875.96,0.19804798]
[1757370895011,1.524816,877.6,875.96,0.19804798]
[1757370895315,2.15811644,877.59,875.96,0.19804798]
[1757370895611,0.63330044,877.58,875.96,0.19804798]
[1757370895816,0.63330044,877.57,875.96,0.19804798]
[1757370896018,0.63330044,877.56,875.96,0.19804798]
[1757370896318,0.63330044,877.55,875.96,0.19804798]
[1757370896617,0.63330044,877.54,875.96,0.19804798]
[1757370896912,0.63330044,877.53,875.96,0.19804798]
[1757370897112,0.63330044,877.52,875.96,0.19804798]
[1757370897312,0.63330044,877.51,875.96,0.19804798]
[1757370897517,0.63330044,877.5,875.96,0.19804798]
[1757370897717,0.63330044,877.49,875.96,0.19804798]
[1757370897913,1.524816,877.59,875.96,0.19804798]
[1757370898116,0.63331901,877.58,875.96,0.19804798]
[1757370898417,0.63331901,877.57,875.96,0.19804798]
[1757370898617,0.63331901,877.56,875.96,0.19804798]
[1757370898816,0.63331901,877.55,875.96,0.19804798]
[1757370899013,0.63331901,877.54,875.96,0.19804798]
[1757370899314,0.63331901,877.53,875.96,0.19804798]
[1757370899512,0.63331901,877.52,875.96,0.19804798]
[1757370899713,0.63331901,877.51,875.96,0.19804798]
[1757370899918,0.63331901,877.5,875.96,0.19804798]
[1757370900114,0.63331901,877.49,875.96,0.19804798]
[1757370900317,0.63331901,877.48,875.96,0.19804798]
[1757370900514,0.63331901,877.47,875.96,0.19804798]
[1757370900719,0.63331901,877.46,875.96,0.19804798]
[1757370900915,1.524816,877.65,875.96,0.19804798]
[1757370901219,2.15813704,877.64,875.96,0.19804798]
[1757370901415,0.63332104,877.63,875.96,0.19804798]
[1757370901716,0.63332104,877.62,875.96,0.19804798]
[1757370901920,0.63332104,877.61,875.96,0.19804798]
[1757370902118,0.63332104,877.6,875.96,0.19804798]
[1757370902418,0.63332104,877.59,875.96,0.19804798]
[1757370902617,0.63332104,877.58,875.96,0.19804798]
[1757370902818,0.63332104,877.57,875.96,0.19804798]
[1757370903017,0.63332104,877.56,875.96,0.19804798]
[1757370903221,0.63332104,877.55,875.96,0.19804798]
[1757370903422,0.63332104,877.54,875.96,0.19804798]
[1757370903623,0.63332104,877.53,875.96,0.19804798]
[1757370903823,0.63332104,877.52,875.96,0.19804798]
[1757370904024,0.63332104,877.51,875.96,0.19804798]
[1757370904321,0.63332104,877.5,875.96,0.19804798]
[1757370904520,0.63332104,877.49,875.96,0.19804798]
[1757370904721,0.63332104,877.48,875.96,0.19804798]
[1757370904920,0.63332104,877.47,875.96,0.19804798]
[1757370905119,0.63332104,877.46,875.96,0.19804798]
[1757370905322,1.524816,877.63,875.96,0.19804798]
[1757370905619,0.63280348,877.62,875.96,0.19804798]
[1757370905822,0.63280348,877.61,875.96,0.19804798]
[1757370906121,0.63280348,877.6,875.96,0.19804798]
[1757370906319,0.63280348,877.59,875.96,0.19804798]
[1757370906525,0.63280348,877.58,875.96,0.19804798]
[1757370906724,0.63280348,877.57,875.96,0.19804798]
[1757370906919,0.63280348,877.56,875.96,0.19804798]
[1757370907121,0.63280348,877.55,875.96,0.19804798]
[1757370907326,0.63280348,877.54,875.96,0.19804798]
[1757370907523,0.63280348,877.53,875.96,0.19804798]
[1757370907725,0.63280348,877.52,875.96,0.19804798]
[1757370907929,0.63280348,877.51,875.96,0.19804798]
[1757370908127,0.63280348,877.5,875.96,0.19804798]
[1757370908325,0.63280348,877.49,875.96,0.19804798]
[1757370908626,0.63280348,877.48,875.96,0.19804798]
[1757370908830,0.63280348,877.47,875.96,0.19804798]
[1757370909030,0.63280348,877.46,875.96,0.19804798]
[1757370909230,1.524816,877.55,875.96,0.19804798]
[1757370909431,0.63280034,877.54,875.96,0.19804798]
[1757370909626,0.63280034,877.53,875.96,0.19804798]
[1757370909925,0.63280034,877.52,875.96,0.19804798]
[1757370910230,0.63280034,877.51,875.96,0.19804798]
[1757370910429,2.5398345,878.3,875.96,0.19804798]
[1757370910430,0.63280034,877.5,875.96,0.19804798]
[1757370910729,0.63280034,877.49,875.96,0.19804798]
[1757370910929,0.63280034,877.48,875.96,0.19804798]
[1757370911130,0.63280034,877.47,875.96,0.19804798]
[1757370911427,0.63280034,877.46,875.96,0.19804798]
[1757370911628,1.524816,877.51,875.96,0.19804798]
[1757370911927,0.63280483,877.5,875.96,0.19804798]
[1757370912131,0.63280483,877.49,875.96,0.19804798]
[1757370912332,0.63280483,877.48,875.96,0.19804798]
[1757370912532,0.63280483,877.47,875.96,0.19804798]
[1757370912733,0.63280483,877.46,875.96,0.19804798]
[1757370912929,0.63280483,877.45,875.96,0.19804798]
[1757370913132,0.63280483,877.44,875.96,0.19804798]
[1757370913433,1.524816,877.49,875.96,0.19804798]
[1757370913630,0.63280371,877.48,875.96,0.19804798]
[1757370913829,0.63280371,877.47,875.96,0.19804798]
[1757370914029,0.63280371,877.46,875.96,0.19804798]
[1757370914232,0.63280371,877.45,875.96,0.19804798]
[1757370914429,0.63280371,877.44,875.96,0.19804798]
[1757370914733,0.63280371,877.43,875.96,0.19804798]
[1757370914934,0.63280371,877.42,875.96,0.19804798]
[1757370915131,0.63280371,877.41,875.96,0.19804798]
[1757370915334,0.63280371,877.4,875.96,0.19804798]
[1757370915635,0.63280371,877.39,875.96,0.19804798]
[1757370915833,1.524816,877.36,875.96,0.19804798]
[1757370916030,0.63280371,877.35,875.96,0.19804798]
[1757370916231,0.63280371,877.34,875.96,0.19804798]
[1757370916429,0.63280371,877.33,875.96,0.19804798]
[1757370916635,0.63280371,877.32,875.96,0.19804798]
[1757370916933,0.63280371,877.31,875.96,0.19804798]
[1757370917131,0.63280371,877.3,875.96,0.19804798]
[1757370917435,0.63280371,877.29,875.96,0.19804798]
[1757370917633,0.63280371,877.28,875.96,0.19804798]
[1757370917834,0.63280371,877.27,875.96,0.19804798]
[1757370918034,0.63280371,877.26,875.96,0.19804798]
[1757370918233,1.524816,877.45,875.96,0.19804798]
[1757370918435,0.63253973,877.44,875.96,0.19804798]
[1757370918636,0.63253973,877.43,875.96,0.19804798]
[1757370918834,0.63253973,877.42,875.96,0.19804798]
[1757370919033,0.63253973,877.41,875.96,0.19804798]
[1757370919237,0.63253973,877.4,875.96,0.19804798]
[1757370919435,0.63253973,877.39,875.96,0.19804798]
[1757370919635,0.63253973,877.38,875.96,0.19804798]
[1757370919837,0.63253973,877.37,875.96,0.19804798]
[1757370920138,0.63253973,877.36,875.96,0.19804798]
[1757370920437,2.5398345,878.3,875.96,0.19804798]
[1757370920438,0.63253973,877.35,875.96,0.19804798]
[1757370920639,0.63253973,877.34,875.96,0.19804798]
[1757370920941,0.63253973,877.33,875.96,0.19804798]
[1757370921133,0.63253973,877.32,875.96,0.19804798]
[1757370921336,0.63253973,877.31,875.96,0.19804798]
[1757370921537,0.63253973,877.3,875.96,0.19804798]
[1757370921736,0.63253973,877.29,875.96,0.19804798]
[1757370922035,0.63253973,877.28,875.96,0.19804798]
[1757370922234,0.63253973,877.27,875.96,0.19804798]
[1757370922533,0.63253973,877.26,875.96,0.19804798]
[1757370922739,1.524816,877.44,875.96,0.19804798]
[1757370923034,0.63236733,877.43,875.96,0.19804798]
[1757370923239,0.63236733,877.42,875.96,0.19804798]
[1757370923543,0.63236733,877.41,875.96,0.19804798]
[1757370923838,0.63236733,877.4,875.96,0.19804798]
[1757370924036,0.63236733,877.39,875.96,0.19804798]
[1757370924340,0.63236733,877.38,875.96,0.19804798]
[1757370924538,0.63236733,877.37,875.96,0.19804798]
[1757370924736,0.63236733,877.36,875.96,0.19804798]
[1757370924939,0.63236733,877.35,875.96,0.19804798]
[1757370925136,1.524816,877.45,875.96,0.19804798]
[1757370925137,0.63236733,877.34,875.96,0.19804798]
[1757370925340,0.63236733,877.33,875.96,0.19804798]
[1757370925540,5.1015647,879.36,875.96,0.19804798]
[1757370925541,0.63236733,877.32,875.96,0.19804798]
[1757370925740,0.63236733,877.31,875.96,0.19804798]
[1757370926037,0.63236733,877.3,875.96,0.19804798]
[1757370926236,0.63236733,877.29,875.96,0.19804798]
[1757370926440,0.63236733,877.28,875.96,0.19804798]
[1757370926639,0.63236733,877.27,875.96,0.19804798]
[1757370926837,0.63236733,877.26,875.96,0.19804798]
[1757370927037,1.524816,877.43,875.96,0.19804798]
[1757370927237,0.63219443,877.42,875.96,0.19804798]
[1757370927441,0.63219443,877.41,875.96,0.19804798]
[1757370927639,0.63219443,877.4,875.96,0.19804798]
[1757370927845,1.524816,877.33,875.96,0.19804798]
[1757370928143,0.63219443,877.32,875.96,0.19804798]
[1757370928344,0.63219443,877.31,875.96,0.19804798]
[1757370928547,0.63219443,877.3,875.96,0.19804798]
[1757370928745,0.63219443,877.29,875.96,0.19804798]
[1757370929048,0.63219443,877.28,875.96,0.19804798]
[1757370929348,0.63219443,877.27,875.96,0.19804798]
[1757370929548,0.63219443,877.26,875.96,0.19804798]
[1757370929746,1.524816,877.33,875.96,0.19804798]
[1757370930048,0.63212014,877.32,875.96,0.19804798]
[1757370930249,0.63212014,877.31,875.96,0.19804798]
[1757370930545,0.63212014,877.3,875.96,0.19804798]
[1757370930749,0.63212014,877.29,875.96,0.19804798]
[1757370931046,0.63212014,877.28,875.96,0.19804798]
[1757370931245,0.63212014,877.27,875.96,0.19804798]
[1757370931450,0.63212014,877.26,875.96,0.19804798]
[1757370931750,1.524816,877.34,875.96,0.19804798]
[1757370931946,0.63206129,877.33,875.96,0.19804798]
[1757370932150,0.63206129,877.32,875.96,0.19804798]
[1757370932351,0.63206129,877.31,875.96,0.19804798]
[1757370932551,0.63206129,877.3,875.96,0.19804798]
[1757370932751,0.63206129,877.29,875.96,0.19804798]
[1757370932951,0.63206129,877.28,875.96,0.19804798]
[1757370933149,0.63206129,877.27,875.96,0.19804798]
[1757370933348,0.63206129,877.26,875.96,0.19804798]
[1757370933552,1.524816,877.34,875.96,0.19804798]
[1757370933749,0.63316526,877.33,875.96,0.19804798]
[1757370934048,0.63316526,877.32,875.96,0.19804798]
[1757370934252,0.63316526,877.31,875.96,0.19804798]
[1757370934450,0.63316526,877.3,875.96,0.19804798]
[1757370934648,0.63316526,877.29,875.96,0.19804798]
[1757370934856,0.63316526,877.28,875.96,0.19804798]
[1757370935052,0.63316526,877.27,875.96,0.19804798]
[1757370935253,0.63316526,877.26,875.96,0.19804798]
[1757370935450,1.524816,877.36,875.96,0.19804798]
[1757370935753,0.63304022,877.35,875.96,0.19804798]
[1757370935953,0.63304022,877.34,875.96,0.19804798]
[1757370936149,0.63304022,877.33,875.96,0.19804798]
[1757370936454,0.63304022,877.32,875.96,0.19804798]
[1757370936648,0.63304022,877.31,875.96,0.19804798]
[1757370936852,0.63304022,877.3,875.96,0.19804798]
[1757370937051,0.63304022,877.29,875.96,0.19804798]
[1757370937249,0.63304022,877.28,875.96,0.19804798]
[1757370937450,0.63304022,877.27,875.96,0.19804798]
[1757370937653,0.63304022,877.26,875.96,0.19804798]
[1757370937855,1.524816,877.36,875.96,0.19804798]
[1757370938055,0.63298976,877.35,875.96,0.19804798]
[1757370938254,0.63298976,877.34,875.96,0.19804798]
[1757370938456,0.63298976,877.33,875.96,0.19804798]
[1757370938657,0.63298976,877.32,875.96,0.19804798]
[1757370938858,0.63298976,877.31,875.96,0.19804798]
[1757370939057,0.63298976,877.3,875.96,0.19804798]
[1757370939255,0.63298976,877.29,875.96,0.19804798]
[1757370939454,0.63298976,877.28,875.96,0.19804798]
[1757370939658,0.63298976,877.27,875.96,0.19804798]
[1757370939859,0.63298976,877.26,875.96,0.19804798]
[1757370940059,1.524816,877.28,875.96,0.19804798]
[1757370940254,0.63293002,877.27,875.96,0.19804798]
[1757370940555,0.63293002,877.26,875.96,0.19804798]
[1757370940754,0.63289736,877.25,875.96,0.19804798]
[1757370940958,0.63289736,877.24,875.96,0.19804798]
[1757370941160,1.524816,877.28,875.96,0.19804798]
[1757370941456,0.63288154,877.27,875.96,0.19804798]
[1757370941659,0.63288154,877.26,875.96,0.19804798]
[1757370941861,0.63288154,877.25,875.96,0.19804798]
[1757370942156,0.63288154,877.24,875.96,0.19804798]
[1757370942458,1.524816,877.29,875.96,0.19804798]
[1757370942661,0.63285328,877.28,875.96,0.19804798]
[1757370942862,0.63285328,877.27,875.96,0.19804798]
[1757370943061,0.63285328,877.26,875.96,0.19804798]
[1757370943257,0.63285328,877.25,875.96,0.19804798]
[1757370943557,1.524816,877.35,875.96,0.19804798]
[1757370943760,0.63263602,877.34,875.96,0.19804798]
[1757370944061,0.63263602,877.33,875.96,0.19804798]
[1757370944256,0.63263602,877.32,875.96,0.19804798]
[1757370944457,0.63263602,877.31,875.96,0.19804798]
[1757370944657,0.63263602,877.3,875.96,0.19804798]
[1757370944862,0.63263602,877.29,875.96,0.19804798]
[1757370945163,0.63263602,877.28,875.96,0.19804798]
[1757370945361,0.63263602,877.27,875.96,0.19804798]
[1757370945558,0.63263602,877.26,875.96,0.19804798]
[1757370945759,1.524816,877.56,875.96,0.19804798]
[1757370945958,0.6326351,877.55,875.96,0.19804798]
[1757370946159,0.6326351,877.54,875.96,0.19804798]
[1757370946359,0.6326351,877.53,875.96,0.19804798]
[1757370946662,0.6326351,877.52,875.96,0.19804798]
[1757370946861,0.6326351,877.51,875.96,0.19804798]
[1757370947061,0.6326351,877.5,875.96,0.19804798]
[1757370947364,0.6326351,877.49,875.96,0.19804798]
[1757370947560,0.6326351,877.48,875.96,0.19804798]
[1757370947860,0.6326351,877.47,875.96,0.19804798]
[1757370948066,0.6326351,877.46,875.96,0.19804798]
[1757370948261,0.6326351,877.45,875.96,0.19804798]
[1757370948563,0.6326351,877.44,875.96,0.19804798]
[1757370948763,0.6326351,877.43,875.96,0.19804798]
[1757370948964,0.6326351,877.42,875.96,0.19804798]
[1757370949166,0.63274279,877.41,875.96,0.19804798]
[1757370949364,0.63274279,877.4,875.96,0.19804798]
[1757370949563,0.63274279,877.39,875.96,0.19804798]
[1757370949863,0.63274279,877.38,875.96,0.19804798]
[1757370950063,0.63274279,877.37,875.96,0.19804798]
[1757370950263,0.63274279,877.36,875.96,0.19804798]
[1757370950461,0.63274279,877.35,875.96,0.19804798]
[1757370950661,0.63274279,877.34,875.96,0.19804798]
[1757370950860,1.524816,877.61,875.96,0.19804798]
[1757370950861,0.63274279,877.33,875.96,0.19804798]
[1757370951060,0.63274279,877.32,875.96,0.19804798]
[1757370951265,0.63274279,877.31,875.96,0.19804798]
[1757370951561,2.5398345,878.54,875.96,0.19804798]
[1757370951562,1.524816,877.62,875.96,0.19804798]
[1757370951863,0.63281821,877.61,875.96,0.19804798]
[1757370952062,0.63281821,877.6,875.96,0.19804798]
[1757370952364,0.63281821,877.59,875.96,0.19804798]
[1757370952565,0.63281821,877.58,875.96,0.19804798]
[1757370952763,0.63281821,877.57,875.96,0.19804798]
[1757370952962,0.63281821,877.56,875.96,0.19804798]
[1757370953160,0.63281821,877.55,875.96,0.19804798]
[1757370953364,0.63281821,877.54,875.96,0.19804798]
[1757370953560,0.63281821,877.53,875.96,0.19804798]
[1757370953765,0.63281821,877.52,875.96,0.19804798]
[1757370953965,0.63281821,877.51,875.96,0.19804798]
[1757370954164,0.63281821,877.5,875.96,0.19804798]
[1757370954462,0.63281821,877.49,875.96,0.19804798]
[1757370954660,2.5398345,878.52,875.96,0.19804798]
[1757370954661,0.63281821,877.48,875.96,0.19804798]
[1757370954865,0.63281821,877.47,875.96,0.19804798]
[1757370955061,0.63281821,877.46,875.96,0.19804798]
[1757370955266,0.63281821,877.45,875.96,0.19804798]
[1757370955465,0.63281821,877.44,875.96,0.19804798]
[1757370955666,2.5398345,878.32,875.96,0.19804798]
[1757370955667,0.63281821,877.43,875.96,0.19804798]
[1757370955866,0.63281821,877.42,875.96,0.19804798]
[1757370956162,0.63281821,877.41,875.96,0.19804798]
[1757370956362,0.63281821,877.4,875.96,0.19804798]
[1757370956561,0.63281821,877.39,875.96,0.19804798]
[1757370956766,0.63281821,877.38,875.96,0.19804798]
[1757370956964,0.63281821,877.37,875.96,0.19804798]
[1757370957164,0.63281821,877.36,875.96,0.19804798]
[1757370957362,0.63281821,877.35,875.96,0.19804798]
[1757370957567,0.63281821,877.34,875.96,0.19804798]
[1757370957763,0.63281821,877.33,875.96,0.19804798]
[1757370957968,0.63281821,877.32,875.96,0.19804798]
[1757370958269,1.524816,877.37,875.96,0.19804798]
[1757370958470,0.63315344,877.36,875.96,0.19804798]
[1757370958764,0.63315344,877.35,875.96,0.19804798]
[1757370958965,0.63315344,877.34,875.96,0.19804798]
[1757370959169,0.63315344,877.33,875.96,0.19804798]
[1757370959466,2.15796944,877.32,875.96,0.19804798]
[1757370959669,1.524816,877.32,875.96,0.19804798]
[1757370960666,1.524816,877.36,875.96,0.19804798]
[1757370960866,0.63319767,877.35,875.96,0.19804798]
[1757370961064,0.63319767,877.34,875.96,0.19804798]
[1757370961267,0.63319767,877.33,875.96,0.19804798]
[1757370961565,0.63319767,877.32,875.96,0.19804798]
[1757370961766,0.63322751,877.31,875.96,0.19804798]
[1757370962070,0.63322751,877.3,875.96,0.19804798]
[1757370962366,1.524816,877.42,875.96,0.19804798]
[1757370962567,0.6332767,877.41,875.96,0.19804798]
[1757370962866,0.6332767,877.4,875.96,0.19804798]
[1757370963171,0.6332767,877.39,875.96,0.19804798]
[1757370963371,0.6332767,877.38,875.96,0.19804798]
[1757370963570,0.6332767,877.37,875.96,0.19804798]
[1757370963771,0.6332767,877.36,875.96,0.19804798]
[1757370963970,0.6332767,877.35,875.96,0.19804798]
[1757370964168,0.6332767,877.34,875.96,0.19804798]
[1757370964366,0.6332767,877.33,875.96,0.19804798]
[1757370964569,0.6332767,877.32,875.96,0.19804798]
[1757370964869,0.6332767,877.31,875.96,0.19804798]
[1757370965168,0.6332767,877.3,875.96,0.19804798]
[1757370965367,0.6332767,877.29,875.96,0.19804798]
[1757370965571,0.6332767,877.28,875.96,0.19804798]
[1757370965772,0.6332767,877.27,875.96,0.19804798]
[1757370965966,1.524816,877.43,875.96,0.19804798]
[1757370966271,2.16020938,877.42,875.96,0.19804798]
[1757370966471,0.63539338,877.41,875.96,0.19804798]
[1757370966671,0.63539338,877.4,875.96,0.19804798]
[1757370966868,0.63539338,877.39,875.96,0.19804798]
[1757370967068,0.63539338,877.38,875.96,0.19804798]
[1757370967371,0.63539338,877.37,875.96,0.19804798]
[1757370967570,0.63539338,877.36,875.96,0.19804798]
[1757370967770,0.63539338,877.35,875.96,0.19804798]
[1757370967970,0.63539338,877.34,875.96,0.19804798]
[1757370968169,0.63539338,877.33,875.96,0.19804798]
[1757370968372,0.63539338,877.32,875.96,0.19804798]
[1757370968570,0.63539338,877.31,875.96,0.19804798]
[1757370968873,0.63539338,877.3,875.96,0.19804798]
[1757370969070,0.63539338,877.29,875.96,0.19804798]
[1757370969370,0.63539338,877.28,875.96,0.19804798]
[1757370969673,1.524816,877.4,875.96,0.19804798]
[1757370969674,0.63539338,877.27,875.96,0.19804798]
[1757370969969,1.524816,877.4,875.96,0.19804798]
[1757370970173,0.63577327,877.39,875.96,0.19804798]
[1757370970369,0.63577327,877.38,875.96,0.19804798]
[1757370970569,0.63577327,877.37,875.96,0.19804798]
[1757370970873,0.63577327,877.36,875.96,0.19804798]
[1757370971171,0.63577327,877.35,875.96,0.19804798]
[1757370971370,0.63577327,877.34,875.96,0.19804798]
[1757370971670,0.63577327,877.33,875.96,0.19804798]
[1757370971868,0.63577327,877.32,875.96,0.19804798]
[1757370972173,0.63577327,877.31,875.96,0.19804798]
[1757370972370,0.63577327,877.3,875.96,0.19804798]
[1757370972568,0.63577327,877.29,875.96,0.19804798]
[1757370972770,0.63577327,877.28,875.96,0.19804798]
[1757370972969,0.63577327,877.27,875.96,0.19804798]
[1757370973168,0.63577327,877.26,875.96,0.19804798]
[1757370973375,0.63577327,877.25,875.96,0.19804798]
[1757370973570,0.63577327,877.24,875.96,0.19804798]
[1757370973769,0.63577327,877.23,875.96,0.19804798]
[1757370974073,0.63577327,877.22,875.96,0.19804798]
[1757370974273,0.63577327,877.21,875.96,0.19804798]
[1757370974472,0.63577327,877.2,875.96,0.19804798]
[1757370974773,0.63577327,877.19,875.96,0.19804798]